Cogmind - Beta 16 @@@ ROGUE MODE // 2026.01.23 @ 00:43:39 Player: Bowster Result: Destroyed by L-31 Rogue with Katana Performance ------------- Evolutions (1) 500 Regions Visited (2) 400 Robots Destroyed (16) 80 Value Destroyed (203) 203 Prototype IDs (1) 20 Alien Tech Used (0) 0 Bonus (0) 0 TOTAL SCORE: 1203 Bonus ------- None Cogmind --------- Core Integrity 0/400 Matter 239/300 Energy 85/100 System Corruption 0% Temperature Warm (119) Movement Core (100) Ox1 Location -9/Materials Parts ------- > --- POWER (1) -------- (None) > --- PROPULSION (3) --- (None) > --- UTILITY (3) ------ Small Storage Unit > --- WEAPON (2) ------- (None) > --- INVENTORY (8) ---- Light Ion Engine Peak State ------------ > --- POWER ------------ Ion Engine > --- PROPULSION ------- Aluminum Leg Aluminum Leg > --- UTILITY ---------- Small Storage Unit High-capacity Matter Pod Seismic Detector > --- WEAPON ----------- Improved Medium Laser Light Cannon > --- INVENTORY -------- Light Ion Engine Mining Laser Mining Laser [Rating: 10] Favorites ----------- Power Light Ion Engine Engine Light Ion Engine Propulsion Light Treads Treads Light Treads Leg Aluminum Leg Utility Small Storage Unit Device Seismic Detector Storage Small Storage Unit Weapon Assault Rifle Energy Gun Improved Medium Laser Ballistic Gun Assault Rifle Ballistic Cannon Light Cannon Special Weapon Mining Laser Build | -11 -10 -9 ------- Run | Yrd Mat Mat Slots Evolved 2 | . . 2 Power . | . . . Propulsion 1 | . . 1 Utility 1 | . . 1 Weapon . | . . . Parts Attached 17 | 6 8 3 Power 4 | 1 3 . Engine 4 | 1 3 . Core . | . . . Reactor . | . . . Propulsion 4 | 2 2 . Treads 2 | 2 . . Leg 2 | . 2 . Wheel . | . . . Hover . | . . . Flight . | . . . Utility 3 | 1 2 . Device 1 | . 1 . Storage 2 | 1 1 . Processor . | . . . Hackware . | . . . Protection . | . . . Artifact . | . . . Weapon 6 | 2 1 3 Energy Gun 1 | . . 1 Energy Cannon . | . . . Ballistic Gun 2 | 2 . . Ballistic Cannon 1 | . 1 . Launcher . | . . . Special Weapon 2 | . . 2 Impact Weapon . | . . . Slashing Weapon . | . . . Piercing Weapon . | . . . Special Melee Weapon . | . . . Unidentified Prototypes 1 | . . 1 Parts Lost 7 | . . 7 Power 1 | . . 1 Propulsion 1 | . . 1 Utility 1 | . . 1 Weapon 4 | . . 4 Highest Loss Streak 7 | . . 7 To Critical Strikes . | . . . Average Backups 3 | 1 4 2 Power . | . . 1 Propulsion 1 | . 1 . Utility . | . . . Weapon 1 | . 1 1 Tool/Special . | . . . Unused Backups 1 | . . 1 Power 1 | . . 1 Propulsion . | . . . Utility . | . . . Weapon . | . . . Tool/Special . | . . . Average Slot Usage (%) 84 | . 86 69 Engine 13 | . 14 9 Treads 15 | . 18 . Leg 10 | . 9 18 Device 2 | . 1 7 Storage 21 | . 21 21 Ballistic Gun 15 | . 18 . Ballistic Cannon 3 | . 2 8 Peak Build Rating 10 | 6 7 10 Average Rating 6 | 4 6 7 On Entrance 4 | . 6 6 Avg Prop Armor Cover (%) . | . . . Naked Turns . | . . . Heaviest Build 21 | 11 17 21 Greatest Support 40 | 40 40 20 Greatest Overweight (x) 3 | . 3 1 Average Overweight (x) . | . . . Largest Inventory Capacity 8 | 8 8 8 Average Capacity 7 | 6 8 8 Most Carried 7 | 3 7 4 Average Carried 3 | 1 4 2 Final Capacity 8 | 8 8 8 Final Carried 4 | 3 4 1 Class Distribution -------------------- 100% | Mutant Dominant Class ---------------- Mutant | -10/Materials Mutant | -9/Materials Resources | -11 -10 -9 ----------- Run | Yrd Mat Mat Matter Collected 458 | 172 286 . Remotely . | . . . Salvage Created 260 | . 260 . Parts 32 | . 32 . Haulers Intercepted . | . . . Recyclers Shooed 1 | . 1 . Parts Field Recycled . | . . . Retrieved Matter . | . . . Parts Self-Destructed . | . . . Prevented . | . . . Parts Restored . | . . . Kills | -11 -10 -9 ------- Run | Yrd Mat Mat Combat Hostiles Destroyed 11 | . 11 . Guns 8 | . 8 . Cannons 3 | . 3 . Classes Destroyed 4 | . 4 . Worker 3 | . 3 . Watcher 2 | . 2 . Swarmer 9 | . 9 . Grunt 2 | . 2 . Best Kill Streak 5 | . 5 . Combat Bots Only 5 | . 5 . Max Kills in Single Turn 1 | . 1 . Gunslinging . | . . . Exploded . | . . . Melee . | . . . Uniques/NPCs Destroyed . | . . . Combat | -11 -10 -9 -------- Run | Yrd Mat Mat Hostile Shots Fired 111 | . 62 49 Missed 22 | . 16 6 Hits 89 | . 46 43 Melee 12 | . . 12 Projectile 77 | . 46 31 Critical Strikes 2 | . . 2 Damage Taken 1152 | . 381 771 Core 451 | . 33 418 Absorbed by Shields . | . . . Core Remaining (%) 93 | 100 86 . Volleys Fired 46 | . 40 6 Largest 2 | . 2 2 Hottest 156 | . 40 156 Shots Fired 73 | . 63 10 Gun 50 | . 46 4 Cannon 19 | . 17 2 Launcher . | . . . Special 4 | . . 4 Kinetic 65 | . 63 2 Thermal 8 | . . 8 Explosive . | . . . Electromagnetic . | . . . Robot Hit Streak 14 | . 14 2 Robot Miss Streak 5 | . 3 5 Penetration Max . | . . . Secondary Targets 1 | . 1 . Max Gunslinging Chain 1 | . 1 . Shots Hit Robots 41 | . 37 4 Core Hits 20 | . 20 . Critical Kills 1 | . 1 . Critical Parts Destroyed . | . . . Critical Strikes 2 | . 2 . Destroy 1 | . 1 . Blast 1 | . 1 . Melee Attacks . | . . . Impact . | . . . Slashing . | . . . Piercing . | . . . Sneak Attacks . | . . . Combat Hostiles . | . . . Follow-up Attacks . | . . . Damage Inflicted 563 | . 481 82 Guns 278 | . 260 18 Cannons 225 | . 209 16 Explosions . | . . . Melee . | . . . Ramming 12 | . 12 . Kinetic 485 | . 469 16 Thermal 66 | . . 66 Explosive . | . . . Electromagnetic . | . . . Impact . | . . . Slashing . | . . . Piercing . | . . . Highest Corruption . | . . . Average Corruption . | . . . Corruption Purged . | . . . Corruption Blocked . | . . . Overload Shots . | . . . Overflow Damage 12 | . 12 . Projectiles 12 | . 12 . Explosions . | . . . Melee . | . . . Knockbacks 5 | . 4 1 Impact . | . . . Kinetic 5 | . 4 1 Secondary . | . . . Self-Inflicted Damage . | . . . Shots . | . . . Rammed 6 | . 6 . Targets Rammed 7 | . 7 . Kicked 1 | . 1 . Crushed . | . . . Highest Temperature 183 | . 6 183 Average Temperature 82 | . 6 90 Received Heat Transfer 231 | . 24 207 Siege Activations . | . . . Martial Activations . | . . . Shielding Activations . | . . . Robots Disrupted . | . . . Combat Hostiles . | . . . Robots Corrupted . | . . . Combat Hostiles . | . . . Parts Fried . | . . . Impact Corruptions . | . . . Robots Melted . | . . . Combat Hostiles . | . . . Parts Melted . | . . . Heat Transferred 137 | . . 137 Parts Sabotaged . | . . . Parts Stolen . | . . . Parts Stripped . | . . . Power Chain Reactions . | . . . Alert | -11 -10 -9 ------- Run | Yrd Mat Mat Maximum Alert Level . | . . . Low Security (%) 100 | 100 100 100 Level 1 . | . . . Level 2 . | . . . Level 3 . | . . . Level 4 . | . . . Level 5 . | . . . High Security . | . . . Max Security . | . . . Peak Influence 155 | . 155 60 Initial 25 | . . 25 Average 35 | . 44 15 Influence Increases 390 | . 329 61 Destroy 0b10 Robot/C 220 | . 220 . Destroy 0b10 Robot/NC 25 | . 25 . Destroy Leader 34 | . 34 . Successful Hack 5 | . 5 . Disable Machine 15 | . 15 . Destroy Structure 1 | . . 1 Partial Spotted 15 | . 15 . Lose Combat Pursuer 75 | . 15 60 Influence Decreases 390 | . 268 122 Entered New Map 36 | . . 36 Time Decay 214 | . 179 35 Lost Part 51 | . . 51 Purge Threat 89 | . 89 . Squads Dispatched . | . . . Investigation . | . . . Extermination . | . . . Reinforcement . | . . . Assault . | . . . Garrison . | . . . Intercept . | . . . Searches Triggered . | . . . Construction Impeded . | . . . Haulers Reinforced . | . . . Active Scanning Responses . | . . . Cargo Convoy Interrupts . | . . . Stealth | -11 -10 -9 --------- Run | Yrd Mat Mat Distress Signals . | . . . Communications Jammed . | . . . Distress Signals . | . . . Times Spotted 27 | . 19 8 Peak Tracking Total 6 | . 5 6 Tactical Retreats 2 | . 1 1 Traps | -11 -10 -9 ------- Run | Yrd Mat Mat Traps Triggered 4 | . 4 . Indirectly . | . . . Trap Hack Attempts . | . . . Triggered . | . . . Disarmed . | . . . Reprogrammed . | . . . Reused . | . . . Traps Extracted . | . . . Installed . | . . . Triggered . | . . . Machines | -11 -10 -9 ---------- Run | Yrd Mat Mat Machines Disabled 1 | . 1 . Max in Single Turn 1 | . 1 . Machines Repaired . | . . . Machines Dismantled . | . . . Machines Sabotaged . | . . . Overloaded Fab Kills . | . . . Hacking | -11 -10 -9 --------- Run | Yrd Mat Mat Machines Accessed 1 | . 1 . Terminals 1 | . 1 . Fabricators . | . . . Repair Stations . | . . . Recycling Units . | . . . Scanalyzers . | . . . Garrison Access . | . . . Total Hacks 4 | . 4 . Successful 3 | . 3 . Failed 1 | . 1 . Catastrophic . | . . . Database Lockouts . | . . . Manual . | . . . Terminals 4 | . 4 . Fabricators . | . . . Repair Stations . | . . . Recycling Units . | . . . Scanalyzers . | . . . Garrison Access . | . . . Terminal Hacks 3 | . 3 . Record 1 | . 1 . Unreport Threat 1 | . 1 . Investigation Status 1 | . 1 . Fabricator Hacks . | . . . Repair Station Hacks . | . . . Recycling Unit Hacks . | . . . Scanalyzer . | . . . Garrison Access Hacks . | . . . Unauthorized Hacks . | . . . Terminals . | . . . Fabricators . | . . . Repair Stations . | . . . Recycling Units . | . . . Scanalyzers . | . . . Garrison Access . | . . . Data Cores Recovered . | . . . Used . | . . . Hacking Detections . | . . . Full Trace Events . | . . . Feedback Events . | . . . Feedback Blocked . | . . . Robot Schematics Acquired . | . . . Robots Built . | . . . Authchips . | . . . Time . | . . . Total Robot Build Rating . | . . . Part Schematics Acquired . | . . . Parts Built . | . . . Authchips . | . . . Time . | . . . Total Part Build Rating . | . . . Part Studies Acquired . | . . . Parts Repaired . | . . . Time . | . . . Parts Recycled . | . . . Recycled Matter . | . . . Retrieved Matter . | . . . Retrieved Components . | . . . Parts Scanalyzed . | . . . Part Schematics Acquired . | . . . Parts Damaged . | . . . Bothacking | -11 -10 -9 ------------ Run | Yrd Mat Mat Used RIF Installer . | . . . Robots Hacked . | . . . Non-combat . | . . . Combat . | . . . Robot Hacks Applied . | . . . Relay Couplers Released . | . . . Fabnet Peak Effective % . | . . . Robots Rewired . | . . . Allies Hacked . | . . . Hacks Repelled . | . . . Allies | -11 -10 -9 -------- Run | Yrd Mat Mat Total Allies . | . . . Largest Group . | . . . Highest-Rated Group . | . . . Highest-Rated Ally . | . . . Total Orders . | . . . Ally Attacks . | . . . Total Damage . | . . . Kills . | . . . Allies Corrupted . | . . . Allies Melted . | . . . Intel | -11 -10 -9 ------- Run | Yrd Mat Mat Active Infowar (turns) 196 | . 96 100 Seismic 196 | . 96 100 Robot Analysis Total . | . . . Derelict Logs Recovered . | . . . Drone Launches . | . . . Drone Recoveries . | . . . Exploration | -11 -10 -9 ------------- Run | Yrd Mat Mat Turns Passed 1060 | 121 812 127 Spaces Moved 602 | 70 461 71 Core 5 | 2 3 . Treads 339 | 68 271 . Legs 258 | . 187 71 Wheels . | . . . Hover . | . . . Flight . | . . . Fastest Speed 50 | 50 120 120 Average Speed 143 | 156 144 130 Slowest Speed 200 | 160 200 190 Overloaded Moves . | . . . Propulsion Burnouts . | . . . Robots Hopped . | . . . Potential Cave-ins . | . . . Cave-ins Triggered . | . . . Exploration Rate (%) 19 | 4 42 13 Regions Visited 2 Branch Regions . Pre-discovered Areas . | . . . Known Exits Taken . | . . . Unknown Exits Taken 2 | 1 1 . Scrap Searched . | . . . Spaces Dug . | . . . Terrain Destroyed 1 | . . 1 Melee . | . . . Projectile 1 | . . 1 AOE . | . . . Terrain Rammed . | . . . Walls Destroyed . | . . . Machines Disabled . | . . . Actions | -11 -10 -9 --------- Run | Yrd Mat Mat Total 709 | 78 544 87 Wait 24 | . 19 5 Move 600 | 69 460 71 Hop . | . . . Pick Up 8 | 3 5 . Fast Attach 12 | 6 4 2 Attach 6 | . 4 2 Detach . | . . . Swap 3 | . 3 . Drop 3 | . 2 1 Fire 46 | . 40 6 Melee . | . . . Ram . | . . . Kick 1 | . 1 . Crush 6 | . 6 . Escape Stasis . | . . . Rewire . | . . . Trap . | . . . Miscellaneous . | . . . Route ------- -11/Scrapyard -10/Materials -9/Materials History --------- Turn | Location | Event 13 | -11/Scrapyard | Discovered new exit (range 15) 122 | -11/Scrapyard | Entered Materials 310 | -10/Materials | Build established: Mutant 405 | -10/Materials | Discovered new exit (range 15) 934 | -10/Materials | Entered another Materials area 934 | -9/Materials | Evolved 2 slots: Propulsion x1, Utility x1 1055 | -9/Materials | Core integrity fell below 50% 1059 | -9/Materials | Core integrity fell below 20% 1061 | -9/Materials | Destroyed by L-31 Rogue with Katana Last Messages --------------- 00884_ R-06 Scavenger collects Wheel. PARAMETERS=PROPULSION+1,UTILITY+1 LOCATION=UNKNOWN GOAL=ESCAPE 00936_ Dropped Seismic Detector. 00936_ Acquired Seismic Detector. 01006_ K-01 Serf collects debris. 01008_ Acquired Prototype Energy Gun. 01008_ Identified Imp. Medium Laser. 01012_ K-01 Serf collects debris. 01029_ L-31 Rogue knocked back. 01036_ Lgt. Cannon destroyed. 01036_ Seismic Detector destroyed. 01041_ Aluminum Leg severed. 01044_ Imp. Medium Laser destroyed. 01048_ Aluminum Leg destroyed. 01049_ Mining Laser destroyed. 01049_ Ion Engine destroyed. 01057_ Mining Laser destroyed. 01059_ Hcp. Matter Pod severed. Map ----- +----------------------------------------------------+ | ?????????????????????????????????????????????????? | | ?????????????????????????????????????????????????? | | ?????????????????????????????????????????????????? | | ?????????????????????????????????????????????????? | | ?????????????????????????????????????????????????? | | ?????????????????????????????????????????????????? | | ?????????????????????????????????????????????????? | | ?????????????????????????????????????????????????? | | ?????????????????????????????????????????????????? | | ?????????????????????????????????????????????????? | | ?????????????????????????????????????????????????? | | ?????????????????????????????????????????????????? | | ?????????????????????????????????????????????????? | | ???????????????????? ????????????????????????????? | | ??????????????????##+###?????????????????????????? | | ??????????????????? ?????????????????????????? | | ???????????????????# ?????????????????????????? | | ???????????????????# #????????????????????????? | | ???????????????????# #????????????????????????? | | ???????????????????# #????????????????????????? | | ???????????????????# ########?????????????????? | | ???????????????????# #* #?????????????????? | | ???????????????????# #Yg #?????????????????? | | ???????????????????# ; g #?????????????????? | | ???????????????????# lgg #?????????????????? | | ???????????????????#### #@ #?????????????????? | | ??????????????????????# # #?????????????????? | | ????????###########??## ########?????????????????? | | ????????# % ! #### #####???????????????????? | | ????????# * + T #??????????????? | | ????????# #### #######?????????????????? | | ?###????# #??#####???????????????????????? | | ?# ##########+############???????????????????? | | ?# ????????????????? | | ????????????????? | | ?# ????????????????? | | ?# ######## ################?????????????????? | | ??????????????# #????????????????????????????????? | | ??????????????# #????????????????????????????????? | | ??????????????# #????????????????????????????????? | | ??????????????# #????????????????????????????????? | | ??????????????# #????????????????????????????????? | | ??????????????# #?????????################???????? | | ??????????????# #?????????# #???????? | | ??????????????# ########### #???????? | | ??????????????# #???????? | | ??????????????# #########+########+####???????? | | ??????????????# #????# # = #????????? | | ??????????????# #????# """ # #????????? | | ??????????????# #????# """ # """ #????????? | +----------------------------------------------------+ Best States ------------- Heat Dissipation 28 Energy Generation 10 Energy Capacity 250 Matter Stores 300 Matter Capacity 500 Sight Range 16 Terrain Scan Density 10 Evasion (%) 55 Recoil Reduction 2 Item Schematics ----------------- None Robot Schematics ------------------ None Fabricated ------------ Nothing Repaired ---------- Nothing Studied --------- None Alien Tech Used ----------------- None Achievements -------------- None Challenges ------------ None Game ------ Seed ChromaticIonicBattery Manual? 0 Play Time 00:09:56 Cumulative 19.5 hours Start 2026.01.22 @ 18:52:05 End 2026.01.23 @ 00:43:39 Sessions 2 Manual Loads 0 Difficulty Rogue Special Mode None Game No. 23 Rogue 23 Adventurer 0 Explorer 0 Win Type - Total 0 Types 0/0/0/0/0/0/0/0/0/0 Lore% 7 Gallery% 18 Achievement% 15 Wizard Run 0 Options --------- Layout 0 ASCII 0 Keyboard 1 Movement Numpad Keybinds 0 Fullscreen 1 Font 24/Crisp Map View 76x50 Zoom Use 1% Tactical HUD 1 Map Filters NONE Filters NONE Steam 1 RUN: 6c84d9ed-97fb-4a65-92a1-42e38b5e4019